bitfinex-derivatives/quotes_SOLF0:USTF0_20241017
["timestamp","ask_amount","ask_price","bid_price","bid_amount"]
[1729155288721,10.05,153.23,153.2,3.34206127]
[1729155289215,13.3138,153.23,153.2,3.34206127]
[1729155291125,3.2638,153.23,153.2,3.34206127]
[1729155291421,3.2638,153.23,153.19,13.3145]
[1729155291824,3.2638,153.23,153.19,16.52028597]
[1729155292127,3.2638,153.23,153.19,13.25578597]
[1729155292318,3.2638,153.23,153.2,3.2645]
[1729155292519,13.3138,153.24,153.2,3.2645]
[1729155298023,3.264,153.23,153.19,6.47038597]
[1729155298323,1.3988,153.26,153.19,3.20578597]
[1729155298629,10.05,153.22,153.17,10.05]
[1729155298829,13.3142,153.22,153.18,3.2649]
[1729155302730,3.2642,153.22,153.18,13.3149]
[1729155303430,13.3143,153.21,153.18,3.2649]
[1729155303731,10.05,153.19,153.13,10.05]
[1729155303932,10.05,153.19,153.14,1.63349361]
[1729155304235,10.05,153.17,153.12,11.3764]
[1729155304429,10.05,153.17,153.13,1.63356976]
[1729155304634,3.2651,153.17,153.13,10.05]
[1729155305331,3.2651,153.17,153.14,3.2657]
[1729155310344,10.05,153.17,153.1,1.3853]
[1729155310635,10.05,153.13,153.11,1.63370016]
[1729155310841,10.05,153.13,153.08,13.25624676]
[1729155311032,10.05,153.13,153.09,1.63407527]
[1729155311338,10.05,153.11,153.08,3.20624676]
[1729155311533,10.05,153.12,153.08,10.05]
[1729155311733,10.05,153.12,153.1,3.2665]
[1729155313742,10.05,153.11,153.08,3.23851289]
[1729155313933,10.05,153.1,153.05,11.4142]
[1729155314136,13.3167,153.1,153.07,485.20446253]
[1729155315541,13.3163,153.12,153.08,3.2668]
[1729155316040,13.3163,153.12,153.09,3.2668]
[1729155316241,3.2661,153.13,153.08,13.29904707]
[1729155316435,91.23043705,153.21,153.12,10.05]
[1729155316639,10.05,153.18,153.13,13.3159]
[1729155316840,3.2652,153.17,153.14,3.18836624]
[1729155317438,3.2652,153.17,153.13,13.3159]
[1729155318145,10.05,153.18,153.14,6.45854112]
[1729155318146,13.315,153.18,153.14,6.45854112]
[1729155318539,2.8517,153.2,153.15,10.05]
[1729155318739,3.2648,153.19,153.15,13.3154]
[1729155319441,3.2648,153.19,153.15,16.60833498]
[1729155321343,13.3148,153.19,153.15,16.60833498]
[1729155323747,13.3148,153.19,153.15,6.55833498]
[1729155323939,10.05,153.16,153.12,10.05]
[1729155324136,10.05,153.18,153.13,10.05]
[1729155324346,10.05,153.18,153.13,13.33238751]
[1729155325647,10.05,153.18,153.15,3.2655]
[1729155326549,13.3149,153.18,153.14,3.2656]
[1729155327551,3.2651,153.17,153.13,16.59828751]
[1729155329548,10.05,153.18,153.13,13.33238751]
[1729155330452,2.8517,153.2,153.14,10.05]
[1729155330953,10.05,153.19,153.14,10.05]
[1729155332648,10.05,153.18,153.13,13.33238751]
[1729155332850,10.05,153.18,153.13,10.05]
[1729155333349,10.05,153.18,153.14,3.30351835]
[1729155338358,10.05,153.18,153.12,10.05]
[1729155338853,10.05,153.18,153.12,13.26607191]
[1729155339051,10.05,153.16,153.12,13.26607191]
[1729155339556,10.05,153.16,153.12,3.21607191]
[1729155339857,10.05,153.16,153.12,10.05]
[1729155340057,10.05,153.16,153.13,3.29240367]
[1729155342457,10.05,153.18,153.13,10.05]
[1729155342657,10.05,153.18,153.14,3.28423556]
[1729155342860,2.8951,153.2,153.15,10.05]
[1729155343050,2.8951,153.2,153.1,1.435]
[1729155343051,10.05,153.23,153.18,10.05]
[1729155343251,10.05,153.23,153.19,3.27378037]
[1729155343553,1.01516126,153.22,153.18,10.05]
[1729155343952,10.05,153.23,153.18,13.2443863]
[1729155344153,10.05,153.22,153.18,3.1943863]
[1729155344456,10.05,153.2,153.16,3.2653]
[1729155345559,13.3145,153.2,153.16,3.2653]
[1729155346860,3.2645,153.2,153.16,13.3153]
[1729155348152,13.3143,153.21,153.16,13.3153]
[1729155349565,10.05,153.2,153.16,3.2653]
[1729155352566,10.05,153.2,153.15,10.05]
[1729155352763,10.05,153.2,153.17,3.2651]
[1729155357175,93.89956623,153.26,153.18,13.39118534]
[1729155357377,75.96370484,153.37,153.18,13.39118534]
[1729155357378,1.01515157,153.25,153.24,3.2636]
[1729155357574,1.4224,153.3,153.24,3.2636]
[1729155357781,11.06484389,153.29,153.22,10.05]
[1729155357980,1.01484389,153.28,153.22,13.3248842]
[1729155358375,10.05,153.27,153.22,13.3248842]
[1729155358875,10.05,153.27,153.24,3.2635]
[1729155359481,10.05,153.27,153.22,13.3248842]
[1729155360474,10.05,153.27,153.24,3.2634]
[1729155361181,3.2626,153.29,153.24,3.2634]
[1729155361384,1.01477864,153.28,153.24,3.2634]
[1729155361978,13.3126,153.29,153.24,3.2634]
[1729155362176,1.01477742,153.28,153.24,3.2634]
[1729155363077,10.05,153.27,153.24,3.2634]
[1729155363470,10.05,153.27,153.23,3.2638]
[1729155363471,13.313,153.27,153.23,3.2638]
[1729155363681,10.05,153.25,153.22,3.2748842]
[1729155363883,10.05,153.25,153.2,11.3754]
[1729155364282,10.05,153.25,153.22,3.2639]
[1729155364581,10.05,153.26,153.22,3.2639]
[1729155364785,10.05,153.26,153.2,4.56560404]
[1729155365078,13.3133,153.26,153.22,3.2639]
[1729155368785,3.2634,153.25,153.22,3.2639]
[1729155370989,10.05,153.25,153.2,3.24020404]
[1729155371285,13.3139,153.23,153.2,3.24020404]
[1729155371682,10.05,153.23,153.21,3.2642]
[1729155372286,10.05,153.23,153.21,6.48794464]
[1729155374687,10.05,153.23,153.21,3.22374464]
[1729155374992,10.05,153.23,153.19,1.4075]
[1729155375383,10.05,153.23,153.19,4.70503845]
[1729155375681,10.05,153.23,153.19,1.4075]
[1729155376188,10.05,153.23,153.19,4.72593581]
[1729155376388,10.05,153.23,153.19,1.4075]
[1729155376786,13.3138,153.23,153.19,1.4075]
[1729155376991,10.05,153.2,153.15,89.36521489]
[1729155377190,10.05,153.2,153.1,6.46536044]
[1729155377191,10.05,153.17,153.11,1.3274]
[1729155377386,3.2654,153.16,153.11,1.3274]
[1729155377585,1.4419,153.21,153.12,10.05]
[1729155377890,13.3152,153.17,153.12,10.05]
[1729155378092,10.05,153.17,153.12,10.05]
[1729155378690,13.3155,153.16,153.12,10.05]
[1729155379690,10.05,153.16,153.11,11.3774]
[1729155379888,3.2658,153.14,153.1,3.19896044]
[1729155380090,3.2658,153.14,153.09,10.05]
[1729155380592,3.2658,153.14,153.09,13.34676245]
[1729155381182,10.05,153.15,153.09,13.34676245]
[1729155381384,3.2658,153.14,153.09,13.34676245]
[1729155381996,3.2658,153.14,153.12,10.05]
[1729155384589,10.05,153.17,153.12,10.05]
[1729155384894,3.2657,153.15,153.12,10.05]
[1729155386594,3.2657,153.15,153.11,10.05]
[1729155386787,3.2658,153.14,153.11,10.05]
[1729155389497,3.266,153.13,153.11,10.05]
[1729155393504,3.2658,153.14,153.11,10.05]
[1729155395497,10.05,153.16,153.11,10.05]
[1729155395703,3.2656,153.15,153.12,10.05]
[1729155399205,3.2656,153.15,153.11,10.05]
[1729155400706,10.05,153.16,153.11,10.05]
[1729155401004,3.2658,153.14,153.11,10.05]
[1729155409206,3.2663,153.12,153.09,3.29676245]
[1729155409414,10.05,153.15,153.09,10.05]
[1729155409613,10.05,153.15,153.09,13.30515707]
[1729155409816,3.2664,153.11,153.09,13.30515707]
[1729155410116,10.05,153.15,153.09,13.30515707]
[1729155411112,3.2663,153.12,153.09,13.30515707]
[1729155416318,3.2663,153.12,153.09,16.57195707]
[1729155417521,3.2663,153.12,153.1,10.05]
[1729155420823,1.4419,153.21,153.1,10.05]
[1729155421018,1.4419,153.21,153.14,10.05]
[1729155421019,10.05,153.19,153.14,10.05]
[1729155421819,10.05,153.19,153.14,13.39457137]
[1729155422026,3.2653,153.17,153.14,13.39457137]
[1729155427737,3.2653,153.16,153.14,13.39457137]
[1729155434042,10.05,153.19,153.14,16.66017137]
[1729155435043,10.05,153.19,153.14,6.61017137]
[1729155435242,10.05,153.18,153.14,13.39457137]
[1729155435438,10.05,153.18,153.14,3.34457137]
[1729155435636,10.05,153.18,153.12,10.05]
[1729155436347,10.05,153.18,153.12,13.24788919]
[1729155436942,36.47354812,153.35,153.23,3.2638]
[1729155437245,1.0150417,153.32,153.28,10.05]
[1729155437445,13.3115,153.34,153.28,13.3128]
[1729155437840,1.3352,153.39,153.28,13.3128]
[1729155438045,10.05,153.33,153.28,16.60902044]
[1729155438242,10.05,153.31,153.29,1.63251908]
[1729155438445,10.05,153.31,153.25,13.3134]
[1729155438741,10.05,153.31,153.25,10.05]
[1729155438943,10.05,153.31,153.26,4.244832]
[1729155439147,10.05,153.31,153.27,1.63262769]
[1729155439347,10.05,153.31,153.28,1.63262769]
[1729155439545,10.05,153.31,153.26,3.2632]
[1729155439850,10.05,153.31,153.27,1.63259698]
[1729155440148,10.05,153.31,153.28,1.63259698]
[1729155440342,10.05,153.31,153.26,6.44761277]
[1729155440547,10.05,153.31,153.27,1.63257833]
[1729155440747,10.05,153.31,153.27,10.05]
[1729155441148,10.05,153.31,153.27,13.313]
[1729155441450,3.2616,153.34,153.27,13.313]
[1729155441749,10.05,153.32,153.27,13.313]
[1729155442739,10.05,153.32,153.26,3.18441277]
[1729155442945,10.05,153.31,153.27,1.63258763]
[1729155443144,36.47354812,153.52,153.3,10.05]
[1729155443349,13.3114,153.35,153.3,10.05]
[1729155443649,13.3114,153.35,153.3,13.39411687]
[1729155443951,10.05,153.31,153.23,1.4215]
[1729155444151,10.05,153.31,153.25,10.05]
[1729155444350,10.05,153.31,153.26,1.63254594]
[1729155444554,10.05,153.31,153.27,1.63254594]
[1729155444852,1.4081,153.33,153.25,13.32231969]
[1729155445153,1.4081,153.33,153.27,10.05]
[1729155445154,10.05,153.32,153.27,10.05]
[1729155446053,10.05,153.32,153.28,3.2626]
[1729155450952,13.312,153.32,153.28,3.2626]
[1729155451155,10.05,153.29,153.25,3.27231969]
[1729155451462,10.05,153.26,153.21,88.13436]
[1729155451849,10.05,153.24,153.21,88.13436]
[1729155452048,10.05,153.23,153.21,88.13436]
[1729155452551,10.05,153.29,153.22,10.05]
[1729155452753,10.05,153.29,153.22,13.3288251]
[1729155452960,1.01471345,153.28,153.22,13.3288251]
[1729155454153,1.01471345,153.28,153.24,3.2635]
[1729155456859,13.3127,153.29,153.24,3.2635]
[1729155457058,1.01465615,153.28,153.24,3.2635]
[1729155457353,13.3127,153.29,153.24,3.2635]
[1729155457555,1.01465502,153.28,153.24,3.2635]
[1729155458252,13.3127,153.29,153.24,3.2635]
[1729155459056,10.05,153.28,153.24,3.2635]
[1729155459961,10.05,153.28,153.22,13.3288251]
[1729155460164,10.05,153.26,153.23,3.2638]
[1729155462565,10.05,153.31,153.25,10.05]
[1729155464161,10.05,153.31,153.28,3.2628]
[1729155473166,10.05,153.31,153.25,10.05]
[1729155473359,10.05,153.26,153.22,3.2788251]
[1729155473565,10.05,153.26,153.21,98.18436]
[1729155473767,10.05,153.26,153.22,1.63255162]
[1729155473968,10.05,153.26,153.22,3.20473976]
[1729155474165,10.05,153.26,153.22,3.2639]
[1729155474375,10.05,153.26,153.22,13.30761895]
[1729155475070,13.3129,153.28,153.25,3.2634]
[1729155476669,1.3556,153.35,153.27,10.05]
[1729155476871,10.05,153.32,153.27,10.05]
[1729155477171,13.3115,153.34,153.31,3.2619]
[1729155477471,1.01438594,153.33,153.31,3.2619]
[1729155477768,13.3115,153.34,153.31,3.2619]
[1729155477971,1.01438207,153.33,153.31,3.2619]
[1729155478271,3.2618,153.33,153.3,3.32279455]
[1729155478472,3.2618,153.33,153.29,3.2624]
[1729155478976,13.3118,153.33,153.3,3.3094133]
[1729155479269,10.05,153.33,153.31,3.2621]
[1729155480166,10.05,153.33,153.3,3.21868185]
[1729155480368,3.2616,153.34,153.28,10.05]
[1729155480672,1.014362,153.33,153.28,10.05]
[1729155480868,1.014362,153.33,153.31,3.2621]
[1729155481267,10.05,153.34,153.31,3.2621]
[1729155481462,1.01434325,153.33,153.3,3.20900208]
[1729155481873,1.01434325,153.33,153.3,6.47120208]
[1729155482074,1.01434325,153.33,153.3,3.2622]
[1729155482576,1.01434325,153.33,153.31,3.25959152]
[1729155482778,13.3119,153.32,153.29,3.2625]
[1729155483371,13.3119,153.32,153.3,3.31148649]
[1729155483570,10.05,153.32,153.3,3.31148649]
[1729155485465,3.2618,153.33,153.29,3.2625]
[1729155485672,13.3118,153.33,153.29,3.2625]
[1729155485976,13.3118,153.33,153.3,3.23849164]
[1729155488072,13.3118,153.33,153.29,3.2625]
[1729155490486,36.47354812,153.44,153.32,10.05]
[1729155490681,10.05,153.34,153.32,3.18791314]
[1729155490883,1.3783,153.41,153.26,10.05]
[1729155490884,10.05,153.33,153.26,10.05]
[1729155491182,10.05,153.31,153.29,3.2625]
[1729155491785,1.3783,153.41,153.3,3.19609162]
[1729155491786,6.5205,153.4,153.3,3.19609162]
[1729155491977,10.05,153.31,153.27,3.2628]
[1729155492378,6.5205,153.4,153.25,89.26984774]
[1729155492583,10.05,153.32,153.29,3.2625]
[1729155492783,10.05,153.32,153.3,3.25547791]
[1729155493481,13.3121,153.32,153.3,3.25547791]
[1729155493788,13.3121,153.32,153.28,3.2627]
[1729155495681,10.05,153.3,153.27,3.2629]
[1729155497890,3.2623,153.31,153.27,3.2629]
[1729155497891,13.3123,153.31,153.27,3.2629]
[1729155500192,13.3123,153.31,153.28,3.2628]
[1729155506897,3.2623,153.31,153.28,3.2628]
[1729155507195,13.3123,153.31,153.28,3.2628]
[1729155507584,1.3783,153.41,153.27,10.05]
[1729155507786,1.0143629,153.4,153.31,10.05]
[1729155508095,1.0143629,153.4,153.32,10.05]
[1729155508096,10.05,153.37,153.32,10.05]
[1729155508391,10.05,153.37,153.34,3.2614]
[1729155508693,10.05,153.37,153.32,10.05]
[1729155508892,13.311,153.37,153.33,3.2616]
[1729155509790,3.2605,153.39,153.35,3.2612]
[1729155510095,11.06403405,153.38,153.35,3.2612]
[1729155510290,10.05,153.38,153.35,3.2612]
[1729155510490,10.05,153.38,153.34,3.2613]
[1729155511096,3.2605,153.39,153.34,3.2613]
[1729155511295,11.06403885,153.38,153.34,3.2613]
[1729155511497,13.3107,153.38,153.34,3.2613]
[1729155513589,13.311,153.37,153.32,3.2617]
[1729155516499,10.05,153.34,153.31,3.28493741]
[1729155516696,10.05,153.32,153.28,1.4607]
[1729155517104,10.05,153.3,153.27,1.3596]
[1729155517298,1.3783,153.41,153.23,0.30984708]
[1729155517299,10.05,153.28,153.24,1.98549729]
[1729155517500,10.05,153.28,153.25,1.63239947]
[1729155517700,10.05,153.28,153.23,11.4099]
[1729155517895,10.05,153.28,153.24,4.24459039]
[1729155518207,13.3127,153.29,153.26,3.2631]
[1729155518703,6.5209,153.4,153.26,10.05]
[1729155518907,3.2622,153.31,153.28,3.2628]
[1729155521112,10.05,153.33,153.28,3.2628]
[1729155521309,3.262,153.32,153.28,3.2628]
[1729155523012,10.05,153.31,153.28,3.2628]
[1729155524609,10.05,153.3,153.26,3.2632]
[1729155525311,13.3125,153.3,153.26,3.2632]
[1729155528914,10.05,153.31,153.29,3.2624]
[1729155529109,10.05,153.32,153.29,3.2624]
[1729155529311,10.05,153.32,153.26,10.05]
[1729155530213,13.3121,153.32,153.28,3.2626]
[1729155530413,3.2621,153.32,153.28,3.2626]
[1729155530616,13.3121,153.32,153.28,3.2626]
[1729155534513,13.3121,153.32,153.29,3.2625]
[1729155534711,13.3121,153.32,153.26,10.05]
[1729155534915,13.3121,153.32,153.27,1.63253279]
[1729155535114,13.3121,153.32,153.26,10.05]
[1729155535115,13.3121,153.32,153.28,3.2627]
[1729155538618,5.08,153.33,153.27,10.05]
[1729155538815,18.3918,153.33,153.3,3.2622]
[1729155539019,18.3918,153.33,153.3,6.58662829]
[1729155539522,3.262,153.32,153.3,3.32442829]
[1729155539719,10.05,153.31,153.25,5.08]
[1729155539918,10.05,153.31,153.26,4.24417287]
[1729155540122,13.3123,153.31,153.27,4.89517418]
[1729155540327,13.3123,153.31,153.28,1.63237418]
[1729155540626,13.3123,153.31,153.27,3.2628]
[1729155540831,3.2624,153.3,153.28,1.63245953]
[1729155541027,3.2624,153.3,153.27,3.2628]
[1729155541320,3.2624,153.3,153.28,1.63245953]
[1729155541515,3.2624,153.3,153.27,3.2628]
[1729155541920,3.2624,153.3,153.28,1.63245716]
[1729155542121,3.2624,153.3,153.27,3.2628]
[1729155542323,3.2624,153.3,153.28,1.63245716]
[1729155542523,3.2624,153.3,153.27,3.2628]
[1729155542720,3.2624,153.3,153.28,1.63245953]
[1729155542924,3.2624,153.3,153.27,3.2628]
[1729155543124,3.2624,153.3,153.28,1.63245798]
[1729155543324,5.08,153.33,153.26,10.05]
[1729155543634,3.2622,153.31,153.29,3.2625]
[1729155544535,3.2624,153.3,153.28,3.2627]
[1729155544723,3.2624,153.3,153.26,10.05]
[1729155544929,3.2624,153.3,153.27,4.89535918]
[1729155545130,3.2624,153.3,153.27,3.2629]
[1729155549235,3.2622,153.31,153.28,3.2626]
[1729155551734,3.2626,153.29,153.26,3.2631]
[1729155551940,3.2626,153.29,153.27,1.6324961]
[1729155552139,3.2626,153.29,153.25,10.05]
[1729155552438,3.2626,153.29,153.26,1.63249677]
[1729155552741,13.3124,153.3,153.27,4.89529677]
[1729155552940,13.3124,153.3,153.27,3.2628]
[1729155553133,10.05,153.3,153.27,3.2628]
[1729155553439,3.2626,153.29,153.27,3.2628]
[1729155559438,3.2624,153.3,153.28,3.2626]
[1729155560634,2.7124,153.32,153.27,10.05]
[1729155560830,3.2622,153.31,153.29,3.2625]
[1729155562639,3.2629,153.28,153.25,3.2633]
[1729155562838,13.3129,153.28,153.26,1.63250357]
[1729155563141,13.3129,153.28,153.23,11.4099]
[1729155563337,13.3129,153.28,153.24,4.24461848]
[1729155563540,13.3129,153.28,153.25,4.24461848]
[1729155563840,13.3129,153.28,153.26,1.63254557]
[1729155564137,13.3129,153.28,153.23,11.4099]
[1729155564535,13.3129,153.28,153.24,4.24463006]
[1729155564734,13.3129,153.28,153.25,7.50783006]
[1729155564936,13.3129,153.28,153.26,1.63255002]
[1729155565135,13.3129,153.28,153.25,3.2632]
[1729155565336,13.3129,153.28,153.26,1.63255796]
[1729155565539,13.3129,153.28,153.25,3.2632]
[1729155565740,13.3129,153.28,153.26,1.6325578]
[1729155565938,13.3129,153.28,153.25,3.2632]
[1729155566138,13.3129,153.28,153.26,1.6325578]
[1729155566338,13.3129,153.28,153.25,3.2632]
[1729155566547,13.3129,153.28,153.26,1.63255935]
[1729155566837,13.3129,153.28,153.25,3.2632]
[1729155567043,13.3129,153.28,153.26,1.63255935]
[1729155567242,13.3129,153.28,153.25,3.2632]
[1729155567442,13.3129,153.28,153.26,1.63255935]
[1729155567639,13.3129,153.28,153.25,3.2632]
[1729155567944,13.3129,153.28,153.26,4.89575951]
[1729155568140,13.3129,153.28,153.26,3.2632]
[1729155568637,2.7221,153.32,153.26,10.05]
[1729155568842,1.3901,153.32,153.27,11.6824445]
[1729155569040,1.3901,153.32,153.27,10.05]
[1729155569542,4.6521,153.32,153.29,3.2625]
[1729155570737,3.262,153.32,153.29,3.2625]
[1729155571041,3.262,153.32,153.3,3.2623]
[1729155571242,3.262,153.32,153.3,6.55866158]
[1729155571441,10.05,153.33,153.3,6.55866158]
[1729155571442,13.3118,153.33,153.3,6.55866158]
[1729155572131,10.05,153.33,153.3,3.29636158]
[1729155572332,13.3121,153.31,153.28,3.2627]
[1729155583447,3.2631,153.27,153.24,3.2635]
[1729155583642,3.2631,153.27,153.25,4.24465491]
[1729155583849,3.2631,153.27,153.26,1.63255958]
[1729155584654,10.05,153.29,153.26,4.8582111]
[1729155584949,13.3128,153.29,153.26,3.22565152]
[1729155585157,10.05,153.29,153.23,10.05]
[1729155585352,10.05,153.29,153.24,6.23561091]
[1729155585545,3.2628,153.28,153.25,4.2447183]
[1729155585858,3.2628,153.28,153.26,1.63258396]
[1729155586053,3.2628,153.28,153.27,1.63258396]
[1729155586761,3.2624,153.3,153.27,4.94156046]
[1729155586946,3.2624,153.3,153.27,3.3089765]
[1729155587150,10.05,153.31,153.28,3.2626]
[1729155587350,10.05,153.31,153.28,6.45635962]
[1729155587554,3.2622,153.31,153.28,3.19375962]
[1729155587758,16.3067,153.32,153.29,1.63232539]
[1729155587759,1.3767,153.32,153.29,1.63232539]
[1729155588058,1.3767,153.32,153.28,13.24702356]
[1729155588358,1.3767,153.32,153.3,3.2622]
[1729155591057,3.2619,153.33,153.3,3.2622]
[1729155591461,14.93,153.34,153.29,10.05]
[1729155591654,14.93,153.34,153.28,3.19702356]
[1729155591655,14.93,153.34,153.3,1.63221197]
[1729155591860,10.05,153.31,153.25,4.88]
[1729155592063,10.05,153.3,153.26,6.23462241]
[1729155592264,13.3125,153.3,153.27,4.89521751]
[1729155592465,13.3125,153.3,153.28,1.63231751]
[1729155592757,13.3125,153.3,153.27,3.2629]
[1729155593360,3.2626,153.29,153.27,3.2629]
[1729155593559,1.3574,153.33,153.27,3.2629]
[1729155593864,10.05,153.29,153.27,3.2629]
[1729155600464,2.673,153.36,153.27,3.2629]
[1729155600465,70.48,153.42,153.28,10.05]
[1729155600666,10.05,153.33,153.29,1.63230324]
[1729155600871,10.05,153.33,153.27,8.15681513]
[1729155601071,10.05,153.3,153.28,4.89504845]
[1729155601267,10.05,153.29,153.28,3.2627]
[1729155601467,10.05,153.3,153.28,3.2211723]
[1729155601665,10.05,153.3,153.28,3.2627]
[1729155601869,10.05,153.3,153.28,6.56406491]
[1729155602068,10.05,153.3,153.28,3.2627]
[1729155602672,10.05,153.3,153.28,6.49814205]
[1729155602873,13.3124,153.3,153.28,3.23544205]
[1729155603073,10.05,153.3,153.25,10.05]
[1729155603369,3.2635,153.25,153.22,3.264]
[1729155603575,10.05,153.23,153.22,3.264]
[1729155603780,10.05,153.23,153.22,5.87652777]
[1729155604279,10.05,153.23,153.22,9.2056325]
[1729155604775,10.05,153.23,153.22,6.59310473]
[1729155604976,10.05,153.23,153.22,9.20567849]
[1729155605170,10.05,153.23,153.22,3.32910473]
[1729155605372,13.3138,153.23,153.2,273.88533]
[1729155605567,10.05,153.22,153.21,2.61259122]
[1729155605775,10.05,153.23,153.21,3.2115705]
[1729155605973,10.05,153.23,153.2,273.88533]
[1729155606172,10.05,153.22,153.2,270.62103]
[1729155606682,10.05,153.22,153.21,3.20634684]
[1729155607073,10.05,153.22,153.2,270.62103]
[1729155607276,10.05,153.21,153.2,270.62103]
[1729155607572,10.05,153.21,153.2,273.886143]
[1729155608382,13.3143,153.21,153.2,273.886143]
[1729155609682,10.05,153.21,153.2,273.886143]
[1729155610180,4.84,153.25,153.2,273.886143]
[1729155610383,14.89,153.25,153.2,273.886143]
[1729155610773,14.89,153.25,153.21,10.05]
[1729155610985,14.89,153.25,153.22,3.2639]
[1729155613685,10.05,153.3,153.23,10.05]
[1729155613982,14.89,153.3,153.25,10.05]
[1729155614176,4.84,153.3,153.25,10.05]
[1729155614382,10.05,153.29,153.26,3.2632]
[1729155617087,13.3126,153.29,153.26,3.2632]
[1729155621186,3.2626,153.29,153.26,3.2632]
[1729155630500,4.84,153.3,153.27,10.05]
[1729155630903,4.88,153.32,153.29,10.05]
[1729155631200,4.88,153.32,153.3,6.54636043]
[1729155631696,8.142,153.32,153.3,3.28406043]
[1729155634301,3.2626,153.29,153.26,3.2632]
[1729155634807,3.2627,153.29,153.25,3.2633]
[1729155635005,10.05,153.31,153.24,10.05]
[1729155635198,1.01452618,153.3,153.24,10.05]
[1729155635896,4.27702618,153.3,153.27,3.2629]
[1729155636096,4.88,153.32,153.28,3.25642631]
[1729155636298,4.88,153.32,153.26,10.05]
[1729155636299,11.06447086,153.31,153.26,10.05]
[1729155636498,10.05,153.31,153.26,10.05]
[1729155637505,3.2624,153.3,153.27,3.2628]
[1729155637798,3.2624,153.3,153.28,3.29755599]
[1729155638002,8.142,153.32,153.29,3.2625]
[1729155638304,3.262,153.32,153.3,3.32660791]
[1729155638604,13.312,153.32,153.3,3.32660791]
[1729155638801,10.05,153.32,153.28,3.2627]
[1729155639003,3.2621,153.31,153.28,3.2627]
[1729155639402,3.2621,153.31,153.28,6.50618613]
[1729155641201,13.312,153.32,153.28,6.50618613]
[1729155642297,10.05,153.29,153.23,1.98722623]
[1729155642611,10.05,153.25,153.2,286.760843]
[1729155642908,10.05,153.25,153.22,4.89662953]
[1729155643108,10.05,153.25,153.22,3.2639]
[1729155644002,4.88,153.29,153.2,273.886143]
[1729155644003,10.05,153.24,153.2,273.886143]
[1729155644708,10.05,153.24,153.2,277.150443]
[1729155644709,3.2639,153.23,153.2,277.150443]
[1729155644911,10.05,153.24,153.2,273.886143]
[1729155645712,13.3137,153.24,153.21,3.2641]
[1729155647104,1.4374,153.27,153.2,273.886143]
[1729155647306,3.2634,153.25,153.22,3.2639]
[1729155647609,10.05,153.24,153.22,3.2639]
[1729155653610,10.05,153.24,153.21,3.2641]
[1729155653816,10.05,153.23,153.21,3.2641]
[1729155654312,10.05,153.23,153.2,273.886143]
[1729155654516,3.264,153.22,153.2,277.150543]
[1729155654717,10.05,153.21,153.2,277.150543]
[1729155656610,10.05,153.21,153.2,273.886143]
[1729155656806,13.3143,153.21,153.2,273.886143]
[1729155657118,18.1343,153.21,153.2,270.62103]
[1729155657617,18.1343,153.21,153.2,198.58103]
[1729155657618,8.0843,153.21,153.2,198.58103]
[1729155657820,18.1343,153.21,153.2,198.58103]
[1729155660520,8.0843,153.21,153.2,198.58103]
[1729155660709,18.1343,153.21,153.2,198.58103]